bitfinex/quotes_SOLUSD_20241223
["timestamp","ask_amount","ask_price","bid_price","bid_amount"]
[1734960593938,1.5443,183.67,183.58,8.33500772]
[1734960594237,1.5443,183.67,183.58,145.03500772]
[1734960597121,1.5443,183.67,183.58,8.33500772]
[1734960597326,1.5443,183.67,183.58,8.74464291]
[1734960599241,1.5443,183.67,183.6,8.20951772]
[1734960599534,1.5443,183.67,183.59,8.20951772]
[1734960599746,1.5443,183.67,183.59,8.61906825]
[1734960600041,1.5443,183.67,183.58,136.82549]
[1734960600342,6.1133,183.65,183.58,136.7]
[1734960603043,6.1133,183.65,183.56,8.20951772]
[1734960603220,6.1133,183.65,183.57,8.20951772]
[1734960603742,1.02103958,183.64,183.56,8.20951772]
[1734960603936,6.1133,183.65,183.56,8.20951772]
[1734960604420,6.1133,183.65,183.57,8.20951772]
[1734960604817,1.02104112,183.64,183.57,8.20951772]
[1734960605542,1.02104112,183.64,183.53,0.4101463]
[1734960605713,1.6542,183.63,183.54,8.20951772]
[1734960605916,1.0212437,183.62,183.54,8.20951772]
[1734960606435,1.02123674,183.62,183.54,8.20951772]
[1734960607347,2.67543503,183.63,183.54,8.20951772]
[1734960607946,1.6542,183.63,183.54,8.20951772]
[1734960608123,1.6542,183.63,183.56,8.20951772]
[1734960608323,1.6542,183.63,183.57,0.40988974]
[1734960608551,1.6542,183.63,183.56,8.20951772]
[1734960609242,1.6542,183.63,183.53,137.1099513]
[1734960609440,1.6542,183.63,183.53,136.7]
[1734960609619,1.6542,183.63,183.53,144.90951772]
[1734960610340,1.6542,183.63,183.54,0.12549]
[1734960610548,1.6542,183.63,183.55,8.20951772]
[1734960610742,1.6542,183.63,183.56,0.40993663]
[1734960610938,1.6542,183.63,183.55,8.20951772]
[1734960611240,1.6542,183.63,183.39,77.79192783]
[1734960611241,1.5785,183.57,183.42,8.42062905]
[1734960611442,1.5785,183.56,183.42,8.42062905]
[1734960611654,1.5589,183.53,183.42,8.42062905]
[1734960611827,16.43863662,183.52,183.42,8.42062905]
[1734960612143,6.4375,183.51,183.39,8.20951772]
[1734960612346,1.5126,183.49,183.37,8.20951772]
[1734960612525,1.02208004,183.48,183.37,8.20951772]
[1734960612725,1.02208004,183.48,183.38,8.20951772]
[1734960613153,1.02208004,183.48,183.33,139.57695097]
[1734960613337,1.02208004,183.48,183.36,8.20951772]
[1734960613645,1.02208004,183.48,183.37,8.20951772]
[1734960613948,1.02208004,183.48,183.35,8.20951772]
[1734960614146,1.02208004,183.48,183.36,8.20951772]
[1734960615335,1.02208004,183.48,183.35,8.20951772]
[1734960616030,1.02208004,183.48,183.34,8.33500772]
[1734960618236,6.0879,183.47,183.33,0.6767104]
[1734960618550,1.5264,183.45,183.33,0.6767104]
[1734960618723,1.02241382,183.44,183.33,0.6767104]
[1734960620231,1.5916,183.42,183.33,0.6767104]
[1734960620439,1.02261701,183.41,183.33,0.6767104]
[1734960622239,6.0462,183.4,183.33,0.6767104]
[1734960622438,1.6497,183.38,183.33,0.6767104]
[1734960622630,1.02283139,183.37,183.33,0.6767104]
[1734960623433,1.6497,183.38,183.33,0.6767104]
[1734960624047,1.02260661,183.37,183.33,0.6767104]
[1734960624256,1.6497,183.38,183.33,0.6767104]
[1734960624257,2.67233001,183.38,183.33,0.6767104]
[1734960624460,1.6497,183.38,183.33,0.6767104]
[1734960624839,1.5675,183.43,183.36,8.20951772]
[1734960625062,1.5675,183.43,183.37,8.20951772]
[1734960625351,33.85672462,183.45,183.39,8.20951772]
[1734960625352,6.0886,183.45,183.39,8.20951772]
[1734960626028,1.5675,183.48,183.4,8.20951772]
[1734960627343,1.5675,183.48,183.41,0.12549]
[1734960627547,6.3461,183.49,183.43,8.20951772]
[1734960627850,1.6397,183.53,183.45,8.20951772]
[1734960628054,1.6397,183.53,183.46,0.12549]
[1734960628236,1.6397,183.53,183.46,12.97543551]
[1734960628655,1.6397,183.53,183.46,0.12549]
[1734960630451,1.6397,183.53,183.46,12.97543551]
[1734960631949,1.6397,183.53,183.46,0.12549]
[1734960632859,1.6397,183.53,183.46,12.97543551]
[1734960634063,7.9584,183.59,183.51,12.84994551]
[1734960634376,7.9584,183.59,183.53,12.84994551]
[1734960634732,7.9584,183.59,183.52,12.84994551]
[1734960635435,7.8434,183.63,183.53,12.84994551]
[1734960635629,7.8434,183.63,183.54,12.84994551]
[1734960636233,7.8434,183.63,183.56,0.12549]
[1734960636432,7.7201,183.71,183.58,0.12549]
[1734960636636,1.02086805,183.7,183.59,12.84994551]
[1734960636942,1.02078736,183.69,183.59,12.84994551]
[1734960637364,1.02078736,183.69,183.58,149.67543551]
[1734960637570,7.7201,183.71,183.51,14.39124551]
[1734960637571,7.7201,183.71,183.61,12.84994551]
[1734960637752,7.7201,183.71,183.62,12.84994551]
[1734960638155,7.9406,183.81,183.69,12.84994551]
[1734960638358,1.02040221,183.8,183.7,12.84994551]
[1734960638885,7.9406,183.81,183.7,12.97543551]
[1734960639381,1.02022959,183.8,183.7,12.97543551]
[1734960639586,7.9406,183.81,183.71,12.84994551]
[1734960639767,7.9406,183.81,183.72,12.84994551]
[1734960640144,7.9406,183.81,183.71,12.84994551]
[1734960640368,7.9406,183.81,183.72,12.84994551]
[1734960640666,7.9406,183.81,183.75,0.12549]
[1734960640874,6.2993,183.81,183.75,12.84994551]
[1734960641056,6.2993,183.81,183.74,12.97543551]
[1734960641573,6.2993,183.81,183.73,149.54994551]
[1734960642273,6.2993,183.81,183.73,136.7]
[1734960644975,6.2993,183.81,183.72,12.84994551]
[1734960645171,6.2993,183.81,183.73,12.84994551]
[1734960646660,6.2993,183.81,183.74,12.84994551]
[1734960647772,1.02004342,183.8,183.66,150.3121]
[1734960647971,1.02004342,183.8,183.68,12.84994551]
[1734960648171,1.02004342,183.8,183.69,12.84994551]
[1734960648779,1.02004342,183.8,183.64,136.7]
[1734960648780,1.6493,183.79,183.64,136.7]
[1734960648974,1.02054466,183.78,183.65,12.84994551]
[1734960649175,1.02054466,183.78,183.61,6.2859]
[1734960649366,6.3345,183.77,183.61,12.84994551]
[1734960649568,1.02073845,183.76,183.61,12.84994551]
[1734960649773,1.02073845,183.76,183.62,12.84994551]
[1734960649971,1.02073845,183.76,183.63,12.84994551]
[1734960650360,1.02073845,183.76,183.62,12.84994551]
[1734960651569,1.02073845,183.76,183.61,12.84994551]
[1734960652278,1.02073845,183.76,183.58,150.3174]
[1734960652458,1.02073845,183.76,183.62,12.84994551]
[1734960653101,1.02073845,183.76,183.61,12.84994551]
[1734960653283,1.02073845,183.76,183.6,12.84994551]
[1734960653598,1.5111,183.75,183.58,12.84994551]
[1734960653893,1.0209352,183.74,183.59,0.12549]
[1734960654196,6.1788,183.73,183.57,12.84994551]
[1734960654393,1.02103213,183.72,183.57,12.84994551]
[1734960655289,1.6333,183.71,183.55,12.84994551]
[1734960655481,7.10594643,183.7,183.54,12.84994551]
[1734960655686,7.10594643,183.7,183.53,12.84994551]
[1734960656785,7.10594643,183.7,183.54,12.84994551]
[1734960658176,9.29363111,183.7,183.54,12.84994551]
[1734960658702,9.29363111,183.7,183.53,12.84994551]
[1734960659081,9.29363111,183.7,183.54,12.84994551]
[1734960660007,9.29363111,183.7,183.51,12.84994551]
[1734960660304,6.0614,183.68,183.49,12.84994551]
[1734960660481,6.3506,183.66,183.47,12.84994551]
[1734960660681,1.02156765,183.65,183.47,12.84994551]
[1734960661100,6.5403,183.64,183.48,12.84994551]
[1734960661289,1.02145465,183.63,183.48,12.84994551]
[1734960661495,1.5623,183.62,183.48,12.84994551]
[1734960661686,1.02148265,183.61,183.46,12.84994551]
[1734960661890,6.3595,183.6,183.45,12.84994551]
[1734960662086,1.02171856,183.59,183.44,12.84994551]
[1734960662886,1.5813,183.58,183.42,12.84994551]
[1734960663105,6.308,183.56,183.42,12.84994551]
[1734960663298,1.02185157,183.55,183.42,12.84994551]
[1734960664105,1.02185157,183.55,183.43,12.84994551]
[1734960664295,1.02185157,183.55,183.43,20.56597088]
[1734960664889,1.02185157,183.55,183.45,20.56597088]
[1734960665502,1.02185157,183.55,183.43,20.56597088]
[1734960666416,1.02185157,183.55,183.44,20.56597088]
[1734960668600,6.308,183.56,183.48,20.56597088]
[1734960668800,6.308,183.56,183.49,20.56597088]
[1734960669099,1.5813,183.58,183.51,20.56597088]
[1734960669292,1.5813,183.58,183.52,20.56597088]
[1734960669492,6.6088,183.6,183.54,20.56597088]
[1734960669688,6.6088,183.6,183.46,144.8632]
[1734960669689,6.6088,183.6,183.51,20.56597088]
[1734960669893,6.6088,183.6,183.54,0.12549]
[1734960671102,1.5902,183.63,183.54,20.56597088]
[1734960672196,1.02106711,183.62,183.51,20.56597088]
[1734960672608,1.02106711,183.62,183.5,20.56597088]
[1734960673204,1.02106711,183.62,183.49,20.56597088]
[1734960674417,1.02106711,183.62,183.49,0.12549]
[1734960674931,1.02106711,183.62,183.49,20.56597088]
[1734960675916,2.61158468,183.63,183.51,20.56597088]
[1734960676413,2.61158468,183.63,183.51,0.12549]
[1734960680018,2.61158468,183.63,183.5,20.56597088]
[1734960680219,2.61158468,183.63,183.46,20.56597088]
[1734960680692,6.0143,183.62,183.46,20.56597088]
[1734960680896,1.02157577,183.61,183.46,20.56597088]
[1734960682319,1.6158,183.6,183.47,20.69146088]
[1734960682501,1.02144477,183.59,183.48,20.56597088]
[1734960682699,1.02144477,183.59,183.47,20.69146088]
[1734960683795,1.02144477,183.59,183.46,20.56597088]
[1734960683995,6.4312,183.58,183.45,20.69146088]
[1734960684220,1.02160995,183.57,183.45,20.69146088]
[1734960685327,1.02160995,183.57,183.43,20.56597088]
[1734960685627,1.6495,183.56,183.44,20.56597088]
[1734960685920,1.6495,183.56,183.46,20.56597088]
[1734960686120,1.6495,183.56,183.48,20.56597088]
[1734960686309,1.6495,183.56,183.48,12.84662907]
[1734960687625,1.6495,183.56,183.45,0.12549]
[1734960687626,1.6495,183.56,183.47,12.84662907]
[1734960688426,1.6495,183.56,183.47,0.12549]
[1734960688928,2.67104264,183.56,183.46,12.84662907]
[1734960689509,2.67104264,183.56,183.45,12.84662907]
[1734960690118,2.67104264,183.56,183.42,150.3292]
[1734960690433,1.6495,183.56,183.45,20.5617876]
[1734960690614,1.6495,183.56,183.47,20.5617876]
[1734960690931,1.6495,183.56,183.49,20.5617876]
[1734960691616,1.6495,183.56,183.47,20.5617876]
[1734960692735,1.6495,183.56,183.46,20.5617876]
[1734960693032,1.02160273,183.55,183.46,20.5617876]
[1734960693219,1.02160273,183.55,183.44,20.5617876]
[1734960693537,6.043,183.54,183.4,20.5617876]
[1734960693831,1.0219105,183.53,183.41,0.12549]
[1734960694235,1.0219105,183.53,183.4,20.5617876]
[1734960694938,1.52,183.52,183.4,20.5617876]
[1734960695143,1.02196212,183.51,183.39,20.5617876]
[1734960698535,1.02196212,183.51,183.37,20.5617876]
[1734960698742,6.6252,183.5,183.36,20.5617876]
[1734960698943,1.02212025,183.49,183.37,20.5617876]
[1734960700543,1.02212025,183.49,183.38,20.5617876]
[1734960701484,1.02212025,183.49,183.37,20.5617876]
[1734960702018,1.02212025,183.49,183.33,157.938498]
[1734960702019,1.02212025,183.49,183.36,20.5617876]
[1734960702214,1.5227,183.46,183.33,21.238498]
[1734960702449,6.5532,183.44,183.33,0.6767104]
[1734960702632,1.02241012,183.43,183.33,0.6767104]
[1734960703143,6.4278,183.41,183.33,0.6767104]
[1734960703345,1.6589,183.39,183.33,0.6767104]
[1734960703531,1.02279894,183.38,183.33,0.6767104]
[1734960704620,6.4278,183.37,183.33,0.6767104]
[1734960704849,1.02287735,183.36,183.33,0.6767104]
[1734960706540,6.4278,183.37,183.33,0.6767104]
[1734960707335,1.02261774,183.36,183.33,0.6767104]
[1734960707538,6.4278,183.37,183.33,0.6767104]
[1734960708424,1.02254925,183.36,183.33,0.6767104]
[1734960708627,6.4278,183.37,183.33,0.6767104]
[1734960709621,1.02253178,183.36,183.33,0.6767104]
[1734960710134,6.4278,183.37,183.33,0.6767104]
[1734960710453,1.02267918,183.36,183.33,0.6767104]
[1734960711972,1.6269,183.35,183.2,20.5617876]
[1734960712130,1.02306622,183.34,183.21,20.5617876]
[1734960712326,6.4749,183.33,183.21,20.5617876]
[1734960712630,1.02303718,183.32,183.22,20.5617876]
[1734960713157,6.4749,183.33,183.22,20.5617876]
[1734960713340,1.0229043,183.32,183.22,20.5617876]
[1734960715729,1.0229043,183.32,183.19,20.5617876]
[1734960715945,1.0229043,183.32,183.18,20.5617876]
[1734960716131,1.0229043,183.32,183.15,8.2596104]
[1734960716476,1.0229043,183.32,183.17,12.88855749]
[1734960716651,1.5106,183.31,183.17,12.88855749]
[1734960716824,1.02328334,183.3,183.16,12.88855749]
[1734960717029,1.02328334,183.3,183.16,13.01404749]
[1734960717342,6.5862,183.29,183.16,12.88855749]
[1734960717549,1.02335962,183.28,183.15,13.56526789]
[1734960717738,1.02335962,183.28,183.16,12.88855749]
[1734960718250,1.02335962,183.28,183.15,0.6767104]
[1734960718464,1.5451,183.27,183.15,0.6767104]
[1734960718754,1.02348216,183.26,183.15,0.6767104]
[1734960719253,6.0283,183.25,183.15,0.6767104]
[1734960719431,1.0234791,183.24,183.15,0.6767104]
[1734960721856,6.0283,183.25,183.15,0.6767104]
[1734960722162,1.5451,183.27,183.2,20.62829031]
[1734960722539,6.1045,183.3,183.16,136.82549]
[1734960722745,1.02302144,183.29,183.19,20.62829031]
[1734960722941,1.02310462,183.29,183.19,20.62829031]
[1734960723466,1.02310462,183.29,183.17,20.62829031]
[1734960723996,1.02310462,183.29,183.16,20.62829031]
[1734960724157,1.02310462,183.29,183.15,21.30500071]
[1734960724352,1.02310462,183.29,183.15,0.6767104]
[1734960724668,1.6611,183.28,183.15,0.6767104]
[1734960724853,7.4385709,183.27,183.15,0.6767104]
[1734960725570,1.6611,183.26,183.15,0.6767104]
[1734960725745,6.3115,183.24,183.15,0.6767104]
[1734960725943,1.02369069,183.23,183.15,0.6767104]
[1734960727445,1.5457,183.22,183.15,0.6767104]
[1734960727646,1.02384632,183.21,183.15,0.6767104]
[1734960730387,6.4144,183.2,183.15,0.6767104]
[1734960730547,2.56828989,183.19,183.15,0.6767104]
[1734960734167,1.5443,183.19,183.15,0.6767104]
[1734960734747,2.56792321,183.19,183.15,0.6767104]
[1734960734966,1.5443,183.19,183.15,0.6767104]
[1734960735355,8.92083672,183.24,183.15,0.6767104]
[1734960738849,15.13812362,183.24,183.15,0.6767104]
[1734960739070,17.32149051,183.24,183.15,0.6767104]
[1734960744881,11.06949051,183.24,183.15,0.6767104]
[1734960745177,13.9069059,183.23,183.15,1.04e-05]
[1734960745388,1.02380329,183.22,183.15,1.04e-05]
[1734960746065,6.76600919,183.22,183.15,1.04e-05]
[1734960747761,12.92984671,183.21,183.02,6.6192]
[1734960747960,12.92984671,183.21,182.97,0.6767104]
[1734960747961,6.3963,183.19,182.97,0.6767104]
[1734960748156,1.5724,183.16,182.97,0.6767104]
[1734960748356,129.82623811,183.21,182.9,1.6104]
[1734960748357,6.3963,183.12,182.9,1.6104]
[1734960748583,7.22348216,183.11,182.9,22.26326739]
[1734960748796,6.3963,183.09,182.89,0.12549]
[1734960748959,5.98833201,183.08,182.88,20.65286739]
[1734960749162,18.408702,183.08,182.87,20.65286739]
[1734960749657,18.408702,183.08,182.86,20.65286739]
[1734960749853,6.3719,183.07,182.86,20.65286739]
[1734960750065,1.02496525,183.06,182.89,20.65286739]
[1734960750256,1.02496525,183.06,182.84,144.3978]
[1734960750257,1.02496525,183.06,182.92,20.65286739]
[1734960750452,1.02496525,183.06,182.88,20.65286739]
[1734960750453,1.02496525,183.06,182.93,20.65286739]
[1734960751094,1.02496525,183.06,182.94,20.65286739]
[1734960751519,1.02496525,183.06,182.93,20.65286739]
[1734960752278,1.02496525,183.06,182.91,20.65286739]
[1734960752578,1.02496525,183.06,182.9,20.65286739]
[1734960752778,1.02496525,183.06,182.88,20.65286739]
[1734960753103,6.19884156,183.05,182.86,20.65286739]
[1734960753306,1.02491208,183.04,182.87,20.65286739]
[1734960753657,7.22375364,183.04,182.86,20.65286739]
[1734960753890,13.8995059,183.03,182.83,20.65286739]
[1734960754079,1.02500187,183.02,182.84,20.65286739]
[1734960754273,7.81181724,183.02,182.84,20.65286739]
[1734960754468,11.20302139,183.02,182.84,20.65286739]
[1734960754659,2.80763741,183.01,182.83,20.65286739]
[1734960754858,2.80763741,183.01,182.89,20.65286739]
[1734960754859,1.02505836,183.0,182.89,20.65286739]
[1734960755086,1.02505836,183.0,182.9,20.65286739]
[1734960755291,1.02476979,183.02,182.91,20.65286739]
[1734960755492,1.02476979,183.02,182.9,20.65286739]
[1734960756176,1.02476979,183.02,182.89,20.65286739]
[1734960756769,1.02476979,183.02,182.88,136.7]
[1734960756972,1.02476979,183.02,182.88,20.65286739]
[1734960757170,1.02476979,183.02,182.86,20.65286739]
[1734960757581,1.02476979,183.02,182.86,20.49118097]
[1734960757796,1.02476979,183.02,182.87,20.65286739]
[1734960758391,1.02476979,183.02,182.86,20.65286739]
[1734960759210,5.7422059,183.01,182.84,20.65286739]
[1734960759400,1.02509482,183.0,182.84,20.65286739]
[1734960760604,3.83273223,183.0,182.82,20.65286739]
[1734960760780,14.83779898,182.99,182.81,20.65286739]
[1734960760983,1.02516311,182.98,182.79,0.6767104]
[1734960761189,6.283,182.97,182.81,20.65286739]
[1734960761390,1.6294,182.95,182.79,0.6767104]
[1734960761593,1.02538312,182.94,182.79,0.6767104]
[1734960761795,12.42036999,182.93,182.79,0.6767104]
[1734960761981,1.02553252,182.92,182.79,0.6767104]
[1734960762578,2.65477553,182.95,182.85,0.12549]
[1734960762800,2.65477553,182.95,182.85,20.77835739]
[1734960763183,2.65477553,182.95,182.8,143.0994]
[1734960763378,2.65477553,182.95,182.82,20.65286739]
[1734960763601,2.65477553,182.95,182.84,0.12549]
[1734960763602,1.6294,182.95,182.84,0.12549]
[1734960763808,1.02502364,182.94,182.82,20.65286739]
[1734960764110,1.02502364,182.94,182.83,20.65286739]
[1734960764477,1.02502364,182.94,182.84,0.12549]
[1734960765218,1.02502364,182.94,182.8,20.65286739]
[1734960765391,1.02502364,182.94,182.79,0.6767104]
[1734960768814,6.3334,182.93,182.79,0.6767104]
[1734960769056,1.02556541,182.92,182.79,0.6767104]
[1734960770086,1.02556541,182.92,182.68,20.65286739]
[1734960770087,0.6309,182.88,182.68,20.65286739]
[1734960770321,6.0742,182.86,182.68,20.65286739]
[1734960770618,1.0259412,182.85,182.69,20.65286739]
[1734960770825,1.0259412,182.85,182.71,20.65286739]
[1734960771120,1.0259412,182.85,182.69,20.65286739]
[1734960771801,1.0259412,182.85,182.67,20.65286739]
[1734960771999,7.7944,182.84,182.6,0.6767104]
[1734960772198,6.1667,182.82,182.64,20.65286739]
[1734960772399,1.02612492,182.81,182.63,20.65286739]
[1734960772825,1.02612492,182.81,182.64,20.65286739]
[1734960773530,1.02612492,182.81,182.65,0.12549]
[1734960773705,1.02612492,182.81,182.64,20.65286739]
[1734960773898,1.02612492,182.81,182.6,137.3767104]
[1734960774127,1.02612492,182.81,182.64,0.12549]
[1734960775329,1.02612492,182.81,182.65,20.65286739]
[1734960775714,1.02612492,182.81,182.64,20.77835739]
[1734960776624,1.02612492,182.81,182.64,0.12549]
[1734960776823,1.02612492,182.81,182.63,20.65286739]
[1734960777028,1.02612492,182.81,182.62,20.65286739]
[1734960777324,6.0258,182.78,182.6,21.32957779]
[1734960777529,1.02651723,182.77,182.6,0.6767104]
[1734960777829,1.02651723,182.77,182.61,20.65286739]
[1734960779132,1.02651723,182.77,182.62,20.65286739]
[1734960779311,1.02651723,182.77,182.66,20.65286739]
[1734960779511,1.02651723,182.77,182.65,20.65286739]
[1734960779704,1.02651723,182.77,182.63,20.65286739]
[1734960780115,1.02651723,182.77,182.62,20.65286739]
[1734960780507,1.02651723,182.77,182.6,0.6767104]
[1734960780903,1.02651723,182.77,182.62,20.65286739]
[1734960781309,1.02651723,182.77,182.61,20.65286739]
[1734960781502,1.02651723,182.77,182.62,20.65286739]
[1734960781925,1.02651723,182.77,182.63,20.65286739]
[1734960782321,1.02651723,182.77,182.62,20.65286739]
[1734960782809,1.02651723,182.77,182.65,20.65286739]
[1734960783436,1.02596831,182.77,182.65,157.35286739]
[1734960784226,1.02596831,182.77,182.64,20.65286739]
[1734960784433,1.02596831,182.77,182.62,20.65286739]
[1734960785015,1.02596831,182.77,182.65,20.65286739]
[1734960785235,6.0258,182.78,182.67,20.65286739]
[1734960785415,1.0259686,182.77,182.67,20.65286739]
[1734960785613,1.0259686,182.77,182.64,20.65286739]
[1734960785931,1.0259686,182.77,182.62,20.65286739]
[1734960786130,1.0259686,182.77,182.63,20.65286739]
[1734960786335,1.0259686,182.77,182.64,20.65286739]
[1734960786545,6.0258,182.78,182.66,20.65286739]
[1734960786737,6.0258,182.78,182.68,20.65286739]
[1734960787944,6.0771,182.82,182.74,20.65286739]
[1734960788119,1.6574,182.88,182.76,20.65286739]
[1734960788539,1.02551517,182.87,182.76,20.65286739]
[1734960789438,1.02549986,182.86,182.76,20.65286739]
[1734960789738,1.0254914,182.87,182.74,20.65286739]
[1734960789939,6.4802,182.86,182.72,20.65286739]
[1734960790114,1.0257429,182.85,182.71,20.65286739]
[1734960790322,1.0257429,182.85,182.68,20.65286739]
[1734960790526,6.4802,182.83,182.66,20.65286739]
[1734960790730,1.02608041,182.82,182.66,20.65286739]
[1734960790949,1.02608041,182.82,182.67,20.65286739]
[1734960791153,1.02608041,182.82,182.66,20.65286739]
[1734960791642,1.02608041,182.82,182.68,20.65286739]
[1734960792229,1.02608041,182.82,182.67,20.65286739]
[1734960793060,1.02608041,182.82,182.68,20.65286739]
[1734960793419,1.02608041,182.82,182.67,20.65286739]
[1734960793741,1.02608041,182.82,182.68,20.65286739]
[1734960793945,1.02608041,182.82,182.67,20.65286739]
[1734960794919,1.02608041,182.82,182.69,20.65286739]
[1734960795414,1.02608041,182.82,182.7,20.65286739]
[1734960797838,1.02608041,182.82,182.68,157.35286739]
[1734960798322,1.02608041,182.82,182.68,136.7]
[1734960798523,7.9091,182.81,182.66,20.65286739]
[1734960798744,1.02613211,182.8,182.66,20.65286739]
[1734960799437,1.02613211,182.8,182.62,13.6889]
[1734960799438,1.02613211,182.8,182.68,20.65286739]
[1734960799830,7.9091,182.81,182.71,0.12549]
[1734960800027,7.9091,182.81,182.72,20.65286739]
[1734960800241,7.9091,182.81,182.71,0.12549]
[1734960800242,7.9091,182.81,182.74,20.65286739]
[1734960800969,7.9091,182.81,182.72,20.65286739]
[1734960801267,7.9091,182.81,182.74,20.65286739]
[1734960801621,6.4007,182.81,182.76,20.65286739]
[1734960802150,7.5935,182.85,182.76,20.65286739]
[1734960802322,7.5935,182.85,182.78,20.65286739]
[1734960802523,1.6264,182.89,182.8,20.65286739]
[1734960803438,2.65171051,182.89,182.8,20.65286739]
[1734960803625,2.65171051,182.89,182.79,20.65286739]
[1734960803826,2.65171051,182.89,182.77,157.35286739]
[1734960804246,2.65171051,182.89,182.76,20.65286739]
[1734960804650,2.65171051,182.89,182.74,20.65286739]
[1734960805855,2.65171051,182.89,182.76,20.65286739]
[1734960806958,2.65171051,182.89,182.77,0.12549]
[1734960807151,1.025275,182.88,182.77,136.7]
[1734960807453,1.025275,182.88,182.72,20.65286739]
[1734960808029,6.5252,182.87,182.72,20.65286739]
[1734960808258,1.02575829,182.86,182.72,20.65286739]
[1734960808760,1.02575829,182.86,182.73,20.65286739]
[1734960809447,1.02575829,182.86,182.71,20.65286739]
[1734960809830,1.02575829,182.86,182.73,20.65286739]
[1734960811458,6.2162,182.84,182.69,136.7]
[1734960811756,1.6439,182.82,182.67,20.65286739]
[1734960811948,1.02603559,182.81,182.67,20.65286739]
[1734960812134,1.02603559,182.81,182.65,0.12549]
[1734960812329,1.02603559,182.81,182.64,150.3878]
[1734960812330,6.2544,182.8,182.64,150.3878]
[1734960812536,1.02607155,182.79,182.66,20.65286739]
[1734960813258,1.5676,182.78,182.64,20.65286739]
[1734960813469,1.02621834,182.77,182.64,20.65286739]
[1734960814171,1.5676,182.78,182.68,20.65286739]
[1734960815560,1.5676,182.78,182.7,20.65286739]
[1734960816148,1.5676,182.78,182.72,20.65286739]
[1734960816760,6.2544,182.8,182.72,20.65286739]
[1734960817337,6.2544,182.8,182.7,20.65286739]
[1734960817868,6.2544,182.8,182.71,0.12549]
[1734960818058,6.2544,182.8,182.7,20.65286739]
[1734960819242,1.02583699,182.79,182.68,20.65286739]
[1734960821095,6.2544,182.8,182.69,0.12549]
[1734960821246,6.2544,182.8,182.7,20.65286739]
[1734960821440,6.2544,182.8,182.71,0.12549]
[1734960821942,6.2544,182.8,182.72,20.65286739]
[1734960823446,6.2544,182.8,182.7,20.65286739]
[1734960823854,6.2544,182.8,182.72,20.65286739]
[1734960824048,6.2544,182.8,182.75,0.12549]
[1734960824247,6.2544,182.8,182.74,20.65286739]
[1734960824962,1.5415,182.83,182.75,20.65286739]
[1734960825171,1.5415,182.83,182.76,0.12549]
[1734960825379,1.5415,182.83,182.77,20.65286739]
[1734960825581,6.5449,182.85,182.77,20.65286739]
[1734960825775,6.5449,182.85,182.78,20.65286739]
[1734960826765,6.5449,182.85,182.79,20.65286739]
[1734960826962,1.6336,182.87,182.8,20.65286739]
[1734960827166,6.5449,182.9,182.81,20.65286739]
[1734960827360,6.5449,182.9,182.82,20.65286739]
[1734960827774,6.5449,182.9,182.84,20.65286739]
[1734960828188,6.5449,182.9,182.84,0.12549]
[1734960828368,6.5449,182.9,182.84,20.77835739]
[1734960828565,6.5449,182.9,182.85,20.65286739]
[1734960828772,1.6269,182.91,182.85,20.65286739]
[1734960828959,6.1532,182.94,182.82,13.6745]
[1734960829164,6.1532,182.94,182.86,0.12549]
[1734960829407,6.1532,182.94,182.86,20.77835739]
[1734960829696,6.1532,182.94,182.89,20.65286739]
[1734960831888,6.1532,182.94,182.89,0.12549]
[1734960832882,6.1532,182.94,182.89,20.65286739]
[1734960833281,8.0935,182.99,182.91,20.65286739]
[1734960833599,8.0935,182.99,182.93,0.12549]
[1734960833791,6.4469,182.99,182.94,20.65286739]
[1734960834085,6.4469,182.99,182.9,20.65286739]
[1734960834499,6.4469,182.99,182.89,20.65286739]
[1734960834803,6.4469,182.99,182.9,20.65286739]
[1734960835978,6.4469,182.99,182.93,0.12549]
[1734960836169,6.4469,182.99,182.93,20.65286739]
[1734960836366,6.4469,182.99,182.93,0.12549]
[1734960836686,6.4469,182.99,182.9,20.65286739]
[1734960838091,6.4469,182.99,182.85,138.3086]
[1734960838296,2.56407759,182.98,182.82,13.6745]
[1734960838501,2.56407759,182.98,182.86,20.65286739]
[1734960839292,2.56407759,182.98,182.84,20.65286739]
[1734960839493,2.56407759,182.98,182.85,20.65286739]
[1734960839798,2.56407759,182.98,182.88,20.65286739]
[1734960839995,2.5641108,182.98,182.87,20.65286739]
[1734960840391,2.5641108,182.98,182.86,20.65286739]
[1734960840970,2.5641108,182.98,182.85,20.65286739]
[1734960841897,2.5641108,182.98,182.83,157.35286739]
[1734960842072,2.5641108,182.98,182.84,20.65286739]
[1734960842274,6.4796,182.97,182.84,20.65286739]
[1734960842470,6.4796,182.97,182.88,20.65286739]